fUSD/lending_fUSD_20250530
["ID","MTS","AMOUNT","RATE_DAILY","PERIOD"]
[363122812,1748590261319,-3457.04,0.00022191,2]
[363122813,1748590261329,-4654.54,0.00022191,2]
[363122814,1748590261338,-1720.1,0.00022191,2]
[363122815,1748590261348,-420.0,0.00022191,2]
[363122816,1748590261357,-420.0,0.00022191,2]
[363122817,1748590261366,-420.0,0.00022191,2]
[363122818,1748590261375,-420.0,0.00022191,2]
[363122819,1748590261385,-3322.8,0.00022191,2]
[363122820,1748590261394,-420.0,0.00022191,2]
[363122821,1748590261403,-420.0,0.00022191,2]
[363122822,1748590261413,-1068.41,0.00022191,2]
[363122823,1748590261421,-11063.94221809,0.00022191,2]
[363122824,1748590261435,-2315.47778191,0.00022191,2]
[363122825,1748590261444,-503.71,0.00022191,2]
[363122826,1748590261453,-3373.65539971,0.00022191,2]
[363122827,1748590261464,-4406.57460029,0.00022191,2]
[363122828,1748590261474,-1537.0,0.00022191,2]
[363122829,1748590261483,-233.61246589,0.00022191,2]
[363122830,1748590261494,-439.40753411,0.00022191,2]
[363122831,1748590261505,-509.71,0.00022191,2]
[363122832,1748590261514,-420.0,0.00022191,2]
[363122833,1748590261523,-2199.29,0.00022191,2]
[363122834,1748590261533,-2733.45,0.00022191,2]
[363122835,1748590261542,-330.84477028,0.00022191,2]
[363122836,1748590261553,-970.59522972,0.00022191,2]
[363122837,1748590261563,-420.0,0.00022191,2]
[363122838,1748590261572,-761.76975368,0.00022191,2]
[363122839,1748590261587,-9.87024632,0.00022191,2]
[363122840,1748590261597,-534.32975368,0.00022191,2]
[363122841,1748590262348,-155.85,0.00021106,2]
[363122842,1748590262358,-155.85,0.00021121,2]
[363122843,1748590262367,-155.85,0.00021136,2]
[363122844,1748590262376,-420.0,0.00021917,2]
[363122845,1748590262386,-112.45,0.00021917,2]
[363122846,1748590262401,-307.55,0.00021917,2]
[363122847,1748590262411,-420.0,0.00021917,2]
[363122848,1748590262421,-420.0,0.00021917,2]
[363122849,1748590262431,-420.0,0.00021917,2]
[363122850,1748590262440,-420.0,0.00021917,2]
[363122851,1748590262450,-4898.26742532,0.00021983,2]
[363122852,1748590262459,-51.56024632,0.00022191,2]
[363122853,1748590262470,-1017.83,0.00022191,2]
[363122854,1748590262479,-687.14,0.00022191,2]
[363122855,1748590262488,-7688.03527756,0.00022191,2]
[363122856,1748590262506,-155.85,0.00021151,2]
[363122857,1748590262516,-2576.05472244,0.00022191,2]
[363122858,1748590262525,-420.0,0.00022191,2]
[363122859,1748590262534,-1723.73,0.00022191,2]
[363122860,1748590262543,-420.0,0.00022191,2]
[363122861,1748590262553,-765.2,0.00022191,2]
[363122862,1748590262563,-1930.37,0.00022191,2]
[363122863,1748590262572,-940.86,0.00022191,2]
[363122864,1748590262582,-1495.49,0.00022191,2]
[363122865,1748590262592,-420.0,0.00022191,2]
[363122866,1748590262602,-1337.88,0.00022191,2]
[363122867,1748590262613,-637.36,0.00022191,2]
[363122868,1748590262622,-645.7,0.00022191,2]
[363122869,1748590262632,-1876.38,0.00022191,2]
[363122870,1748590262642,-156.7434,0.00022191,7]
[363122871,1748590262652,-915.13,0.00022191,2]
[363122872,1748590262663,-263.826745,0.00022191,2]
[363122873,1748590262674,-340.03790525,0.00022191,2]
[363122874,1748590262697,-155.85,0.00021166,2]
[363122875,1748590262707,-257.84196566,0.00022191,2]
[363122876,1748590262719,-2687.73338409,0.00022191,2]
[363122877,1748590262729,-851.48,0.00022191,2]
[363122878,1748590262738,-621.43,0.00022191,2]
[363122879,1748590262749,-420.0,0.00022191,2]
[363122880,1748590262760,-2973.69837817,0.00022191,2]
[363122881,1748590262776,-381.45162183,0.00022191,2]
[363122882,1748590262787,-420.0,0.00022191,2]
[363122883,1748590262799,-198.54837817,0.00022191,2]
[363122884,1748590262834,-857.30599154,0.00022191,2]
[363122885,1748590262846,-956.44563029,0.00022191,2]
[363122886,1748590262856,-420.0,0.00022191,2]
[363122887,1748590262866,-1538.23,0.00022191,2]
[363122888,1748590262875,-1807.55,0.00022191,2]
[363122889,1748590262885,-775.41,0.00022191,2]
[363122890,1748590262895,-420.0,0.00022191,2]
[363122891,1748590262904,-1072.17,0.00022191,2]
[363122892,1748590262913,-12107.03,0.00022191,2]
[363122893,1748590262922,-420.0,0.00022191,2]
[363122894,1748590262931,-420.0,0.00022191,2]
[363122895,1748590262941,-500.06,0.00022191,2]
[363122896,1748590262951,-1522.55,0.00022191,2]
[363122897,1748590262961,-1182.82,0.00022191,2]
[363122898,1748590262971,-167.6910753,0.00022191,2]
[363122899,1748590262981,-150.0,0.00022191,2]
[363122900,1748590262990,-1088.1,0.00022191,2]
[363122901,1748590263000,-860.93,0.00022191,2]
[363122902,1748590263009,-1191.82,0.00022191,2]
[363122903,1748590263018,-270.11321727,0.00022191,2]
[363122904,1748590263028,-425.27,0.00022191,2]
[363122905,1748590263037,-4771.43,0.00022191,2]
[363122906,1748590263046,-978.82,0.00022191,2]
[363122907,1748590263055,-1332.76,0.00022191,2]
[363122908,1748590263065,-1551.67437751,0.00022191,2]
[363122909,1748590263077,-298.67000001,0.00022191,2]
[363122910,1748590263088,-87.89562248,0.00022191,2]
[363122911,1748590263098,-543.95566577,0.00022191,2]
[363122912,1748590263114,-578.88862156,0.00022191,2]
[363122918,1748590819376,-150.0,0.00020839,7]
[363122919,1748590819403,-300.0,0.00020884,2]
[363122920,1748590819429,-1200.0,0.00020884,2]
[363122921,1748590819456,-2602.0,0.00020885,2]
[363122927,1748591118227,170.93,0.00013699,2]
[363122931,1748591237725,973.78,0.0001853,2]
[363122936,1748591355147,168.32,0.00016326,2]
[363122943,1748591431519,-170.93,0.00020187,2]
[363122944,1748591431529,-257.11,0.00020372,2]
[363122945,1748591431538,-7314.81,0.00020466,2]
[363122946,1748591431548,-1200.0,0.00020487,2]
[363122947,1748591431558,-2738.91,0.00020488,2]
[363122948,1748591431568,-376.86,0.00020636,2]
[363122949,1748591431578,-208.01,0.00020673,2]
[363122950,1748591431587,-156.58,0.00020758,2]
[363122951,1748591431597,-19024.96,0.00020783,2]
[363122952,1748591431607,-599.28978134,0.00020785,2]
[363122953,1748591431616,-599.28978134,0.00020785,2]
[363122954,1748591431625,-973.78,0.00020794,2]
[363122955,1748591431635,-286.64,0.0002082,2]
[363122956,1748591431644,-14554.91,0.00020885,2]
[363122957,1748591431653,-200.0,0.00020898,2]
[363122958,1748591431663,-533.03,0.0002091,2]
[363122959,1748591431673,-192.84,0.00020931,2]
[363122960,1748591431682,-1236.74,0.00020945,2]
[363122961,1748591431692,-168.8,0.00020965,2]
[363122962,1748591431701,-150.0,0.00020966,2]
[363122963,1748591431711,-1000.0,0.00020979,2]
[363122964,1748591431720,-160.09,0.00020986,2]
[363122965,1748591431730,-1160.87,0.00021078,2]
[363122966,1748591431739,-207.4,0.00021115,2]
[363122967,1748591431748,-164.93,0.00021129,2]
[363122968,1748591431757,-170.34,0.00021178,2]
[363122969,1748591431766,-155.85,0.00021181,2]
[363122970,1748591431775,-155.85,0.00021196,2]
[363122971,1748591431784,-155.85,0.00021212,2]
[363122972,1748591431794,-170.36,0.0002137,2]
[363122973,1748591431803,-170.34,0.00021378,2]
[363122974,1748591431812,-152.0,0.00021456,3]
[363122975,1748591431821,-500.0,0.000215,10]
[363122976,1748591431831,-1210.499709,0.00021747,3]
[363122977,1748591431840,-171.24,0.00021753,2]
[363122978,1748591431849,-202.3863,0.00021817,2]
[363122980,1748591431859,-1568.6364,0.00021817,2]
[363122982,1748591431868,-1000.0,0.00021817,2]
[363122984,1748591431878,-3054.63545521,0.00021817,2]
[363122986,1748591431888,-490.00197624,0.0002187,2]
[363122988,1748591431897,-3054.63545519,0.00021874,2]
[363122990,1748591431906,-151.0,0.00021887,2]
[363122991,1748591431916,-1115.157653,0.00021887,2]
[363122993,1748591431925,-151.0,0.00021887,2]
[363122995,1748591431935,-151.0,0.00021887,2]
[363122998,1748591431944,-156.0,0.00021887,2]
[363122999,1748591431953,-668.65185757,0.00021887,2]
[363123002,1748591431963,-151.0,0.00021887,2]
[363123003,1748591431973,-300.0,0.00021887,2]
[363123005,1748591431982,-300.0,0.00021887,2]
[363123008,1748591431992,-430.09911732,0.00021887,2]
[363123010,1748591432001,-678.351,0.00021904,2]
[363123012,1748591432011,-19280.41127701,0.00021907,2]
[363123013,1748591432020,-3807.57249181,0.00021916,3]
[363123015,1748591432029,-500.0,0.00021916,2]
[363123017,1748591432038,-298.6416272,0.00021916,2]
[363123019,1748591432048,-455.28714719,0.00021916,2]
[363123021,1748591432058,-500.0,0.00021916,2]
[363123023,1748591432067,-500.0,0.00021916,2]
[363123025,1748591432076,-500.0,0.00021916,2]
[363123027,1748591432086,-500.0,0.00021916,2]
[363123029,1748591432095,-172.68589696,0.00021916,2]
[363123031,1748591432106,-500.0,0.00021916,2]
[363123033,1748591432115,-293.20721573,0.00021916,2]
[363123034,1748591432125,-150.0,0.00021916,2]
[363123035,1748591432135,-500.0,0.00021916,2]
[363123036,1748591432144,-500.0,0.00021916,2]
[363123037,1748591432155,-6792.05872168,0.00021916,2]
[363123038,1748591432168,-800.0,0.00021916,2]
[363123039,1748591432180,-1100.75380013,0.00021916,2]
[363123040,1748591432200,-2104.86216,0.00021916,2]
[363123041,1748591432212,-2141.32531819,0.00021916,2]
[363123042,1748591432221,-500.0,0.00021917,2]
[363123043,1748591432232,-500.45504748,0.00021917,2]
[363123044,1748591432242,-151.850064,0.00021917,2]
[363123045,1748591432251,-154.243049,0.00021917,2]
[363123046,1748591432261,-108.12652162,0.00021917,2]
[363123055,1748591437536,-1480.24306138,0.00021917,2]
[363123056,1748591437546,-1347.916114,0.00021917,2]
[363123057,1748591437556,-420.0,0.00021917,2]
[363123058,1748591437565,-420.0,0.00021917,2]
[363123059,1748591437575,-244.05818582,0.00021917,2]
[363123060,1748591437589,-240.28181418,0.00021917,2]
[363123061,1748591437599,-181.31818582,0.00021917,2]
[363123062,1748591437611,-238.68181418,0.00021917,2]
[363123063,1748591437852,-420.0,0.00021917,2]
[363123064,1748591437862,-420.0,0.00021917,2]
[363123065,1748591437872,-422.95109081,0.00021917,2]
[363123066,1748591437886,-420.0,0.00021917,2]
[363123067,1748591437896,-500.58185605,0.00021917,2]
[363123068,1748591437906,-420.0,0.00021917,2]
[363123069,1748591437916,-305.98523896,0.00021917,2]
[363123081,1748591438510,-154.54476104,0.00021917,2]
[363123082,1748591438520,-484.2056068,0.00021917,2]
[363123083,1748591438530,-420.0,0.00021917,2]
[363123084,1748591438539,-171.33117233,0.00021917,2]
[363123085,1748591438549,-442.37,0.00021917,2]
[363123086,1748591438558,-420.0,0.00021917,2]
[363123087,1748591438567,-500.0,0.00021917,2]
[363123088,1748591438577,-163.46002977,0.00021917,2]
[363123089,1748591438587,-420.0,0.00021917,2]
[363123090,1748591438596,-116.58843006,0.00021917,2]
[363123091,1748591438608,-303.41156994,0.00021917,2]
[363123092,1748591438618,-420.0,0.00021917,2]
[363123093,1748591438628,-420.0,0.00021917,2]
[363123094,1748591438637,-129.50808673,0.00021917,2]
[363123095,1748591438660,-30.49191327,0.00021917,2]
[363123096,1748591438669,-160.0,0.00021917,2]
[363123097,1748591438679,-420.0,0.00021917,2]
[363123098,1748591438688,-420.0,0.00021917,2]
[363123099,1748591438698,-420.0,0.00021917,2]
[363123100,1748591438707,-420.0,0.00021917,2]
[363123101,1748591438716,-509.65481666,0.00021917,2]
[363123102,1748591438726,-420.0,0.00021917,2]
[363123103,1748591438735,-420.0,0.00021917,2]
[363123104,1748591438744,-420.0,0.00021917,2]
[363123105,1748591438756,-420.0,0.00021917,2]
[363123106,1748591438767,-493.27,0.00021917,2]
[363123107,1748591438776,-420.0,0.00021917,2]
[363123108,1748591438786,-420.0,0.00021917,2]
[363123109,1748591438795,-420.0,0.00021917,2]
[363123110,1748591438804,-420.0,0.00021917,2]
[363123111,1748591438813,-420.0,0.00021917,2]
[363123112,1748591438823,-455.88,0.00021917,2]
[363123113,1748591438832,-160.0,0.00021917,2]
[363123114,1748591438841,-160.0,0.00021917,2]
[363123115,1748591438850,-420.0,0.00021917,2]
[363123116,1748591438859,-505.15987221,0.00021917,2]
[363123117,1748591438869,-160.0,0.00021917,2]
[363123118,1748591438879,-420.0,0.00021917,2]
[363123119,1748591438888,-420.0,0.00021917,2]
[363123120,1748591438898,-500.0,0.00021917,2]
[363123121,1748591438907,-420.0,0.00021917,2]
[363123122,1748591438917,-641.8,0.00021917,2]
[363123123,1748591438927,-420.0,0.00021917,2]
[363123124,1748591438936,-420.0,0.00021917,2]
[363123125,1748591438946,-1147.74,0.00021917,2]
[363123126,1748591438955,-160.0,0.00021917,2]
[363123127,1748591438965,-160.0,0.00021917,2]
[363123128,1748591438975,-206.55841864,0.00021917,2]
[363123129,1748591438984,-420.0,0.00021917,2]
[363123130,1748591438993,-420.0,0.00021917,2]
[363123131,1748591439003,-420.0,0.00021917,2]
[363123132,1748591439012,-420.0,0.00021917,2]
[363123133,1748591439022,-420.0,0.00021917,2]
[363123134,1748591439031,-420.0,0.00021917,2]
[363123135,1748591439042,-160.0,0.00021917,2]
[363123136,1748591439051,-420.0,0.00021917,2]
[363123137,1748591439061,-647.13,0.00021917,2]
[363123138,1748591439070,-420.0,0.00021917,2]
[363123139,1748591439079,-420.0,0.00021917,2]
[363123140,1748591439089,-420.0,0.00021917,2]
[363123141,1748591439098,-281.85046119,0.00021917,2]
[363123142,1748591439108,-160.0,0.00021917,2]
[363123143,1748591439117,-280.66627612,0.00021917,2]
[363123144,1748591439127,-420.0,0.00021917,2]
[363123145,1748591439136,-420.0,0.00021917,2]
[363123146,1748591439146,-464.1,0.00021917,2]
[363123147,1748591439156,-391.09081236,0.00021917,2]
[363123148,1748591439167,-529.34,0.00021917,2]
[363123149,1748591439176,-456.84,0.00021917,2]
[363123150,1748591439186,-601.12,0.00021917,2]
[363123151,1748591439195,-505.67,0.00021917,2]
[363123152,1748591439205,-160.0,0.00021917,2]
[363123153,1748591439214,-420.0,0.00021917,2]
[363123154,1748591439223,-420.0,0.00021917,2]
[363123155,1748591439234,-420.0,0.00021917,2]
[363123156,1748591439243,-539.63260274,0.00021917,2]
[363123157,1748591439253,-420.0,0.00021917,2]
[363123158,1748591439262,-420.0,0.00021917,2]
[363123159,1748591439271,-420.0,0.00021917,2]
[363123160,1748591439281,-420.0,0.00021917,2]
[363123161,1748591439290,-420.0,0.00021917,2]
[363123162,1748591439299,-420.0,0.00021917,2]
[363123164,1748591439308,-420.0,0.00021917,2]
[363123165,1748591439317,-420.0,0.00021917,2]
[363123166,1748591439327,-489.31,0.00021917,2]
[363123167,1748591439336,-767.69,0.00021917,2]
[363123168,1748591439345,-500.0,0.00021917,2]
[363123169,1748591439354,-420.0,0.00021917,2]
[363123170,1748591439363,-420.0,0.00021917,2]
[363123171,1748591439373,-420.0,0.00021917,2]
[363123172,1748591439382,-420.0,0.00021917,2]
[363123173,1748591439392,-500.0,0.00021917,2]
[363123174,1748591439401,-500.0,0.00021917,2]
[363123175,1748591439411,-420.0,0.00021917,2]
[363123176,1748591439421,-420.0,0.00021917,2]
[363123177,1748591439430,-500.0,0.00021917,2]
[363123178,1748591439440,-493.0,0.00021917,2]
[363123179,1748591439449,-420.0,0.00021917,2]
[363123180,1748591439458,-500.0,0.00021917,2]
[363123181,1748591439469,-500.0,0.00021917,2]
[363123182,1748591439478,-238.75968,0.00021917,2]
[363123183,1748591439487,-714.56,0.00021917,2]
[363123184,1748591439497,-164.05034542,0.00021917,2]
[363123185,1748591439506,-500.0,0.00021917,2]
[363123186,1748591439515,-500.0,0.00021917,2]
[363123187,1748591439524,-420.0,0.00021917,2]
[363123188,1748591439533,-524.84,0.00021917,2]
[363123189,1748591439543,-500.0,0.00021917,2]
[363123190,1748591439552,-157.524258,0.00021917,2]
[363123191,1748591439561,-156.041516,0.00021917,2]
[363123192,1748591439571,-163.383773,0.00021917,2]
[363123193,1748591439580,-500.0,0.00021917,2]
[363123195,1748591439589,-588.63,0.00021917,2]
[363123196,1748591439598,-502.76986875,0.00021917,2]
[363123197,1748591439608,-420.0,0.00021917,2]
[363123199,1748591439617,-559.94,0.00021917,2]
[363123200,1748591439627,-717.41,0.00021917,2]
[363123201,1748591439636,-519.89,0.00021917,2]
[363123202,1748591439645,-420.0,0.00021917,2]
[363123203,1748591439655,-420.0,0.00021917,2]
[363123204,1748591439664,-420.0,0.00021917,2]
[363123206,1748591439674,-438.39,0.00021917,2]
[363123208,1748591439683,-420.0,0.00021917,2]
[363123210,1748591439692,-579.64,0.00021917,2]
[363123212,1748591439702,-500.0,0.00021917,2]
[363123214,1748591439712,-420.0,0.00021917,2]
[363123216,1748591439722,-420.0,0.00021917,2]
[363123218,1748591439732,-420.0,0.00021917,2]
[363123219,1748591439742,-739.37,0.00021917,2]
[363123221,1748591439751,-1553.11,0.00021917,2]
[363123222,1748591439761,-500.0,0.00021917,2]
[363123223,1748591439770,-420.0,0.00021917,2]
[363123224,1748591439780,-500.0,0.00021917,2]
[363123225,1748591439789,-420.0,0.00021917,2]
[363123226,1748591439798,-420.0,0.00021917,2]
[363123227,1748591439807,-502.94330181,0.00021917,2]
[363123228,1748591439817,-420.0,0.00021917,2]
[363123229,1748591439826,-420.0,0.00021917,2]
[363123230,1748591439835,-420.0,0.00021917,2]
[363123231,1748591439845,-500.0,0.00021917,2]
[363123232,1748591439854,-420.0,0.00021917,2]
[363123233,1748591439863,-224.72883578,0.00021917,2]
[363123234,1748591439872,-852.49,0.00021917,2]
[363123235,1748591439881,-500.0,0.00021917,2]
[363123236,1748591439891,-451.07276102,0.00021917,2]
[363123237,1748591439900,-420.0,0.00021917,2]
[363123238,1748591439910,-501.13905601,0.00021917,2]
[363123239,1748591439919,-420.0,0.00021917,2]
[363123240,1748591439930,-500.0,0.00021917,2]
[363123241,1748591439941,-157.524256,0.00021917,2]
[363123242,1748591439951,-163.383771,0.00021917,2]
[363123243,1748591439961,-502.89248781,0.00021917,2]
[363123244,1748591439974,-500.0,0.00021917,2]
[363123245,1748591439983,-1339.21,0.00021917,2]
[363123246,1748591439993,-420.0,0.00021917,2]
[363123247,1748591440002,-531.68,0.00021917,2]
[363123248,1748591440012,-420.0,0.00021917,2]
[363123249,1748591440022,-420.0,0.00021917,2]
[363123250,1748591440031,-420.0,0.00021917,2]
[363123251,1748591440040,-502.70504145,0.00021917,2]
[363123252,1748591440050,-420.0,0.00021917,2]
[363123253,1748591440059,-502.75890597,0.00021917,2]
[363123254,1748591440069,-1052.45,0.00021917,2]
[363123255,1748591440078,-420.0,0.00021917,2]
[363123256,1748591440088,-813.33,0.00021917,2]
[363123257,1748591440097,-1170.82,0.00021917,2]
[363123258,1748591440107,-502.77152193,0.00021917,2]
[363123259,1748591440117,-420.0,0.00021917,2]
[363123260,1748591440127,-420.0,0.00021917,2]
[363123261,1748591440136,-500.0,0.00021917,2]
[363123262,1748591440151,-420.0,0.00021917,2]
[363123263,1748591440163,-917.29,0.00021917,2]
[363123264,1748591440172,-420.0,0.00021917,2]
[363123265,1748591440181,-1363.56,0.00021917,2]
[363123266,1748591440191,-500.0,0.00021917,2]
[363123267,1748591440200,-501.90838941,0.00021917,2]
[363123268,1748591440209,-472.99,0.00021917,2]
[363123269,1748591440220,-420.0,0.00021917,2]
[363123270,1748591440229,-530.75209017,0.00021917,2]
[363123271,1748591440240,-503.04124263,0.00021917,2]
[363123272,1748591440250,-1839.83,0.00021917,2]
[363123273,1748591440259,-420.0,0.00021917,2]
[363123274,1748591440269,-1116.11,0.00021917,2]
[363123275,1748591440278,-500.0,0.00021917,2]
[363123276,1748591440287,-420.0,0.00021917,2]
[363123277,1748591440296,-420.0,0.00021917,2]
[363123278,1748591440308,-420.0,0.00021917,2]
[363123279,1748591440318,-420.0,0.00021917,2]
[363123280,1748591440327,-667.45,0.00021917,2]
[363123281,1748591440338,-420.0,0.00021917,2]
[363123282,1748591440348,-420.0,0.00021917,2]
[363123283,1748591440357,-420.0,0.00021917,2]
[363123284,1748591440366,-420.0,0.00021917,2]
[363123285,1748591440375,-420.0,0.00021917,2]
[363123286,1748591440384,-617.71,0.00021917,2]
[363123287,1748591440394,-420.0,0.00021917,2]
[363123288,1748591440402,-420.0,0.00021917,2]
[363123289,1748591440411,-420.0,0.00021917,2]
[363123290,1748591440421,-420.0,0.00021917,2]
[363123291,1748591440430,-2431.8,0.00021917,2]
[363123292,1748591440439,-420.0,0.00021917,2]
[363123293,1748591440448,-505.68514956,0.00021917,2]
[363123294,1748591440457,-1570.87,0.00021917,2]
[363123295,1748591440467,-420.0,0.00021917,2]
[363123296,1748591440476,-158.578473,0.00021917,2]
[363123297,1748591440485,-500.0,0.00021917,2]
[363123298,1748591440496,-420.0,0.00021917,2]
[363123299,1748591440505,-420.0,0.00021917,2]
[363123300,1748591440514,-1236.81,0.00021917,2]
[363123301,1748591440523,-420.0,0.00021917,2]
[363123302,1748591440532,-420.0,0.00021917,2]
[363123303,1748591440541,-420.0,0.00021917,2]
[363123304,1748591440551,-1144.18,0.00021917,2]
[363123305,1748591440560,-483.58629136,0.00021917,2]
[363123306,1748591440569,-420.0,0.00021917,2]
[363123307,1748591440579,-424.39540717,0.00021917,2]
[363123308,1748591440588,-762.5,0.00021917,2]
[363123309,1748591440597,-473.43,0.00021917,2]
[363123310,1748591440607,-420.0,0.00021917,2]
[363123311,1748591440616,-572.26,0.00021917,2]
[363123312,1748591440625,-488.42,0.00021917,2]
[363123313,1748591440636,-420.0,0.00021917,2]
[363123314,1748591440645,-654.14,0.00021917,2]
[363123315,1748591440654,-420.0,0.00021917,2]
[363123316,1748591440664,-420.0,0.00021917,2]
[363123317,1748591440673,-420.0,0.00021917,2]
[363123318,1748591440682,-781.02,0.00021917,2]
[363123319,1748591440692,-681.27,0.00021917,2]
[363123320,1748591440701,-831.8,0.00021917,2]
[363123321,1748591440711,-1423.4,0.00021917,2]
[363123322,1748591440720,-420.0,0.00021917,2]
[363123323,1748591440730,-1626.2,0.00021917,2]
[363123324,1748591440739,-420.0,0.00021917,2]
[363123325,1748591440748,-420.0,0.00021917,2]
[363123326,1748591440757,-420.0,0.00021917,2]
[363123327,1748591440767,-420.0,0.00021917,2]
[363123328,1748591440776,-731.34,0.00021917,2]
[363123329,1748591440785,-420.0,0.00021917,2]
[363123330,1748591440795,-1137.36,0.00021917,2]
[363123331,1748591440804,-420.0,0.00021917,2]
[363123332,1748591440813,-420.0,0.00021917,2]
[363123333,1748591440822,-1190.74,0.00021917,2]
[363123334,1748591440832,-420.0,0.00021917,2]
[363123335,1748591440841,-1240.79,0.00021917,2]
[363123336,1748591440851,-500.0,0.00021917,2]
[363123337,1748591440860,-420.0,0.00021917,2]
[363123338,1748591440869,-494.81019021,0.00021917,2]
[363123339,1748591440878,-420.0,0.00021917,2]
[363123340,1748591440892,-501.87152561,0.00021917,2]
[363123341,1748591440902,-420.0,0.00021917,2]
[363123342,1748591440911,-644.97,0.00021917,2]
[363123343,1748591440920,-826.81,0.00021917,2]
[363123344,1748591440930,-516.31259453,0.00021917,2]
[363123345,1748591440939,-2806.32,0.00021917,2]
[363123346,1748591440948,-416.89624448,0.00021917,2]
[363123347,1748591440957,-931.8,0.00021917,2]
[363123348,1748591440968,-510.61984279,0.00021917,2]
[363123349,1748591440977,-839.39,0.00021917,2]
[363123350,1748591440986,-500.0,0.00021917,2]
[363123351,1748591440995,-718.31,0.00021917,2]
[363123352,1748591441005,-624.3,0.00021917,2]
[363123353,1748591441014,-420.0,0.00021917,2]
[363123354,1748591441023,-1423.01,0.00021917,2]
[363123355,1748591441033,-503.81907225,0.00021917,2]
[363123356,1748591441042,-420.0,0.00021917,2]
[363123357,1748591441051,-420.0,0.00021917,2]
[363123358,1748591441061,-676.43,0.00021917,2]
[363123359,1748591441070,-476.46,0.00021917,2]
[363123360,1748591441079,-1086.74,0.00021917,2]
[363123361,1748591441088,-784.13,0.00021917,2]
[363123362,1748591441097,-420.0,0.00021917,2]
[363123363,1748591441107,-1378.37,0.00021917,2]
[363123364,1748591441116,-1566.6,0.00021917,2]
[363123365,1748591441125,-497.29,0.00021917,2]
[363123366,1748591441135,-509.88,0.00021917,2]
[363123367,1748591441144,-568.89,0.00021917,2]
[363123368,1748591441154,-506.77983329,0.00021917,2]
[363123369,1748591441166,-500.0,0.00021917,2]
[363123370,1748591441176,-500.0,0.00021917,2]
[363123371,1748591441185,-500.0,0.00021917,2]
[363123372,1748591441194,-500.0,0.00021917,2]
[363123373,1748591441205,-500.0,0.00021917,2]
[363123374,1748591441215,-420.0,0.00021917,2]
[363123375,1748591441223,-1038.16,0.00021917,2]
[363123376,1748591441233,-420.0,0.00021917,2]
[363123377,1748591441242,-875.28,0.00021917,2]
[363123378,1748591441252,-1291.11,0.00021917,2]
[363123379,1748591441261,-620.61,0.00021917,2]
[363123380,1748591441270,-642.38,0.00021917,2]
[363123381,1748591441279,-500.0,0.00021917,2]
[363123382,1748591441543,-1300.8,0.00021917,2]
[363123383,1748591441553,-502.71052606,0.00021917,2]
[363123384,1748591441562,-500.0,0.00021917,2]
[363123385,1748591441572,-420.0,0.00021917,2]
[363123386,1748591441581,-507.03887841,0.00021917,2]
[363123387,1748591441590,-420.0,0.00021917,2]
[363123388,1748591441600,-500.0,0.00021917,2]
[363123389,1748591441609,-646.16,0.00021917,2]
[363123390,1748591441618,-613.75,0.00021917,2]
[363123391,1748591441627,-518.54,0.00021917,2]